[Event "1000GM Saint Louis 2022"]
[Site "Saint Louis"]
[Date "2022.07.20"]
[Round "4.4"]
[White "Eswaran, Ashritha"]
[Black "Belous, Vladimir"]
[Result "1-0"]
[ECO "B36"]
[WhiteElo "2394"]
[BlackElo "2519"]
[Annotator "TA"]
[PlyCount "75"]
[EventDate "2022.07.20"]
[EventType "tourn"]
[EventCountry "USA"]
[SourceTitle "playchess.com"]
[Source "ChessBase"]
[SourceQuality "1"]
[TimeControl "5400+30"]

{[%evp 18,75,42,31,58,36,41,35,38,24,56,56,55,45,57,57,82,81,78,81,77,83,125,121,122,123,127,118,268,285,274,270,316,309,306,298,274,112,504,506,477,390,535,510,541,420,436,427,424,417,487,471,914,828,911,885,854,829,711,623]} 1. e4 {[%emt 0:00:05]} c5 {[%emt 0:00:09]} 2. Nf3 {[%emt 0:00:16]} Nc6 {[%emt 0:00:05]} 3. d4 {[%emt 0:00:13]} cxd4 {[%emt 0:00:05]} 4. Nxd4 {[%emt 0:00:07]} g6 {[%emt 0:00:40]} 5. c4 {[%emt 0:00:34]} Nf6 {[%emt 0:00:06]} 6. Nc3 {[%emt 0:00:07]} d6 {[%emt 0:00:04]} 7. Be2 {[%emt 0:00:16]} Nxd4 {[%emt 0:00:11]} 8. Qxd4 {[%emt 0:00:07]} Bg7 {[%emt 0:00:03]} 9. Be3 {[%emt 0:00:21]} O-O {[%emt 0:00:06]} 10. Qd2 {[%emt 0:00:06]} a5 {[%emt 0:00:13] B36: Sicilian: Maroczy Bind: Gurgenidze System.} 11. f3 {[%emt 0:00:29]} a4 {[%emt 0:00:05]} 12. Kf2 {[%emt 0:00:19]} Qa5 {[%emt 0:00:40] White is slightly better. 12...Be6 might become the main line.} 13. Rac1 {[%emt 0:00:12]} Bd7 {[%emt 0:01:35]} 14. Nd5 {[%emt 0:06:32]} Nxd5 {[%emt 0:05:50]} 15. Qxa5 {[%emt 0:00:10]} Rxa5 {[%emt 0:00:44]} 16. cxd5 {[%emt 0:00:14] [#]} Rc8 $146 {[%emt 0:11:16] Inhibits Rc7.} ({Predecessor:} 16... Raa8 17. Rc7 Rfd8 18. Bb6 Bxb2 19. Rc2 a3 20. Bxd8 Rxd8 21. Ke3 Kf8 22. Rc7 b6 {½-½ (58) Diaz Camallonga,C (2463)-Karacsonyi,G (2348) Chess.com INT 2021}) 17. Rxc8+ {[%emt 0:04:41] Black is now going downhill.} Bxc8 {[%emt 0:00:02]} 18. Rc1 {[%emt 0:01:02]} Ra8 {[%emt 0:00:01]} 19. Rc7 $36 {[%emt 0:03:52][%mdl 2048] White is on the roll.} e6 {[%emt 0:07:46]} 20. Bb5 {[%emt 0:05:58] Black must now prevent Be8. White is more active.} exd5 {[%emt 0:01:41]} 21. exd5 {[%emt 0:00:43]} Bxb2 {[%emt 0:10:05]} 22. Be8 $1 {[%emt 0:09:39]} f5 {[%emt 0:00:07] [#]} (22... Kh8 $16 {is a better defense.}) 23. Bf7+ $1 $18 {[%emt 0:01:53]} Kh8 {[%emt 0:00:03] [#]} 24. Bf4 $1 {[%emt 0:01:02]} Bd4+ {[%emt 0:01:21]} 25. Ke1 {[%emt 0:02:36]} g5 {[%emt 0:08:44]} 26. Bxd6 {[%emt 0:03:24]} f4 {[%emt 0:00:10]} 27. Be7 {[%emt 0:03:26]} (27. Bb4 $18) 27... Bf5 $2 {[%emt 0:00:06][%mdl 8192]} (27... Kg7 $16) 28. d6 {[%emt 0:03:14]} Kg7 {[%emt 0:03:15]} 29. Bd5 {[%emt 0:03:33]} Kg6 {[%emt 0:03:12]} 30. d7 {[%emt 0:02:06]} Bf6 {[%emt 0:00:26]} 31. d8=Q {[%emt 0:00:48]} Rxd8 {[%emt 0:00:06]} 32. Bxd8 {[%emt 0:00:03]} Bxd8 {[%emt 0:00:02]} 33. Rxb7 {[%emt 0:00:26] KRB-KB} Ba5+ {[%emt 0:01:48]} 34. Ke2 {[%emt 0:00:13] White is clearly winning.} Bc2 {[%emt 0:00:27]} (34... Kf6 $142 35. Ra7 Bd8) 35. Ra7 {[%emt 0:00:51]} Bb4 {[%emt 0:00:04]} 36. Be4+ {[%emt 0:00:49]} Bxe4 {[%emt 0:00:05]} 37. fxe4 {[%emt 0:00:11]} a3 {[%emt 0:00:07]} 38. Kf3 {[%emt 0:00:30] Weighted Error Value: White=0.18 (very precise) /Black=0.51} 1-0

[Event "1000GM Saint Louis 2022"]
[Site "Saint Louis"]
[Date "2022.07.20"]
[Round "4.4"]
[White "Abrahamyan, Tatev"]
[Black "Mardov, Dimitar"]
[Result "*"]
[ECO "A07"]
[WhiteElo "2291"]
[BlackElo "2396"]
[Annotator "TA"]
[PlyCount "22"]
[EventDate "2022.07.20"]
[EventType "tourn"]
[EventCountry "USA"]
[SourceTitle "playchess.com"]
[Source "ChessBase"]
[SourceQuality "1"]
[TimeControl "5400+30"]

{[%evp 9,22,12,15,17,33,22,7,22,35,16,32,23,41,18,35]} 1. Nf3 {[%emt 0:03:00]} d5 {[%emt 0:00:11]} 2. g3 {[%emt 0:00:04]} Bg4 {[%emt 0:00:13]} 3. Bg2 {[%emt 0:00:04]} Nd7 {[%emt 0:00:19]} 4. O-O {[%emt 0:00:20]} e6 {[%emt 0:00:51]} 5. h3 {[%emt 0:00:04]} Bh5 {[%emt 0:00:30]} 6. d4 {[%emt 0:00:13] A07: Réti Opening: New York and Capablanca Systems.} Ngf6 {[%emt 0:01:23]} 7. c4 {[%emt 0:00:14]} c6 {[%emt 0:03:43]} 8. cxd5 {[%emt 0:00:39]} exd5 {[%emt 0:01:14]} 9. Ne5 {[%emt 0:00:28] now scores much better than the old 9.Qb3.} Bg6 {[%emt 0:06:54]} 10. Nc3 {[%emt 0:01:53] [#]} Nb6 $146 {[%emt 0:13:04]} ({Predecessor:} 10... Bb4 11. Qb3 a5 12. f4 h6 13. Nxg6 fxg6 14. e4 Qb6 15. exd5 Qxd4+ 16. Kh2 Nc5 {1-0 (77) Grandelius,N (2656)-Giri,A (2773) Chess.com INT 2022}) 11. Bg5 {[%emt 0:08:26][%cal Oe2e4]} Be7 {[%emt 0:01:08] Weighted Error Value: White=0.06 (flawless) /Black=0.09 (flawless)} *

[Event "1000GM Saint Louis 2022"]
[Site "Saint Louis"]
[Date "2022.07.20"]
[Round "4.5"]
[White "Eswaran, Ashritha"]
[Black "Belous, Vladimir"]
[Result "*"]
[ECO "B36"]
[WhiteElo "2394"]
[BlackElo "2519"]
[Annotator "TA"]
[PlyCount "38"]
[EventDate "2022.07.20"]
[EventType "tourn"]
[EventCountry "USA"]
[SourceTitle "playchess.com"]
[Source "ChessBase"]
[SourceQuality "1"]
[TimeControl "5400+30"]

{[%evp 18,38,52,47,51,41,37,40,30,15,64,50,57,54,55,58,65,83,89,87,60,72,86]} 1. e4 {[%emt 0:00:05]} c5 {[%emt 0:00:04]} 2. Nf3 {[%emt 0:00:16]} Nc6 {[%emt 0:00:05]} 3. d4 {[%emt 0:00:13]} cxd4 {[%emt 0:00:05]} 4. Nxd4 {[%emt 0:00:07]} g6 {[%emt 0:00:40]} 5. c4 {[%emt 0:00:34]} Nf6 {[%emt 0:00:06]} 6. Nc3 {[%emt 0:00:07]} d6 {[%emt 0:00:04]} 7. Be2 {[%emt 0:00:16]} Nxd4 {[%emt 0:00:11]} 8. Qxd4 {[%emt 0:00:07]} Bg7 {[%emt 0:00:03]} 9. Be3 {[%emt 0:00:21]} O-O {[%emt 0:00:06]} 10. Qd2 {[%emt 0:00:06]} a5 {[%emt 0:00:13] B36: Sicilian: Maroczy Bind: Gurgenidze System.} 11. f3 {[%emt 0:00:29]} a4 {[%emt 0:00:05]} 12. Kf2 {[%emt 0:00:19]} Qa5 {[%emt 0:00:40] White is slightly better. 12...Be6 deserves study.} 13. Rac1 {[%emt 0:00:12]} Bd7 {[%emt 0:01:35]} (13... Be6 $11) 14. Nd5 $14 {[%emt 0:06:32]} Nxd5 {[%emt 0:05:51]} 15. Qxa5 {[%emt 0:00:10]} Rxa5 {[%emt 0:00:44]} 16. cxd5 {[%emt 0:00:13] [#]} Rc8 $146 {[%emt 0:11:16] Prevents Rc7.} ({Predecessor:} 16... Raa8 17. Rc7 Rfd8 18. Bb6 Bxb2 19. Rc2 a3 20. Bxd8 Rxd8 21. Ke3 Kf8 22. Rc7 b6 {½-½ (58) Diaz Camallonga,C (2463)-Karacsonyi,G (2348) Chess.com INT 2021}) 17. Rxc8+ {[%emt 0:04:41]} Bxc8 {[%emt 0:00:02]} 18. Rc1 {[%emt 0:01:02]} Ra8 {[%emt 0:00:01]} 19. Rc7 {[%emt 0:03:52]} e6 {[%emt 0:07:46] Weighted Error Value: White=0.03 (flawless) /Black=0.07 (flawless)} *

[Event "1000GM Saint Louis 2022"]
[Site "Saint Louis"]
[Date "2022.07.21"]
[Round "5.1"]
[White "Belous, Vladimir"]
[Black "Woodward, Andy"]
[Result "1-0"]
[ECO "D93"]
[WhiteElo "2519"]
[BlackElo "2486"]
[Annotator "TA"]
[PlyCount "63"]
[EventDate "2022.07.20"]
[EventType "tourn"]
[EventCountry "USA"]
[SourceTitle "playchess.com"]
[Source "ChessBase"]
[SourceQuality "1"]
[TimeControl "5400+30"]

{[%evp 26,63,29,0,3,-15,77,97,231,227,224,215,246,225,503,497,485,496,496,481,485,489,638,613,1013,1012,1093,1075,1256,1241,1211,1172,975,766,29991,29992,29993,29993,29996,29997]} 1. c4 {[%emt 0:02:06]} Nf6 {[%emt 0:00:08]} 2. Nf3 {[%emt 0:01:33]} g6 {[%emt 0:00:10]} 3. Nc3 {[%emt 0:00:31]} d5 {[%emt 0:00:08]} 4. d4 {[%emt 0:05:22]} Bg7 {[%emt 0:00:16]} 5. Bf4 {[%emt 0:00:05]} O-O {[%emt 0:00:09]} 6. e3 {[%emt 0:00:03]} c5 {[%emt 0:00:10]} 7. dxc5 {[%emt 0:00:02]} Qa5 {[%emt 0:00:08]} 8. Rc1 {[%emt 0:00:17]} dxc4 {[%emt 0:00:09]} 9. Bxc4 {[%emt 0:00:03]} Qxc5 {[%emt 0:00:08]} 10. Bb3 {[%emt 0:00:04]} Nc6 {[%emt 0:01:05]} 11. O-O {[%emt 0:00:05]} Qa5 {[%emt 0:00:06]} 12. h3 {[%emt 0:00:05]} Bf5 {[%emt 0:00:54]} 13. Qe2 {[%emt 0:00:04]} Ne4 {[%emt 0:01:25]} 14. Nd5 {[%emt 0:00:02] [#] Black must now prevent Bc7. was the old line (14.Nxe4).} e5 {[%emt 0:00:10] D93: Grünfeld: 4 Nf3 Bg7 5 Bf4 0-0 6 e3.} 15. Bg5 {[%emt 0:00:01]} Nc5 {[%emt 0:12:44]} (15... Nxg5 $11 16. Nxg5 Qd8) 16. Bc4 $16 {[%emt 0:08:05][%cal Ob2b4] [#] Threatens to win with b4!} Be6 $146 {[%emt 0:27:44]} (16... Kh8 $16) ({Predecessor:} 16... e4) 17. Ne7+ $18 {[%emt 0:02:39]} Nxe7 {[%emt 0:06:44]} 18. Bxe7 {[%emt 0:00:11] [#] And now b4 would win.} Rfc8 {[%emt 0:00:59]} 19. Ng5 {[%emt 0:02:54][%cal Bf3g5,Bg5e4,Be4c3,Bc3d5][%mdl 32]} Bxc4 $2 {[%emt 0:19:28]} (19... b5) 20. Qxc4 {[%emt 0:00:16]} ({Weaker is} 20. Rxc4 h6 $16) 20... Ne6 {[%emt 0:00:07]} 21. Qxc8+ {[%emt 0:00:29]} Rxc8 {[%emt 0:00:04]} 22. Rxc8+ {[%emt 0:00:03]} Nf8 {[%emt 0:00:08]} 23. Rd1 {[%emt 0:01:44] Hoping for Rdd8.} h6 {[%emt 0:02:24]} 24. Ne4 {[%emt 0:05:46]} Qa4 {[%emt 0:03:21]} 25. Nc3 {[%emt 0:01:31]} Qc2 {[%emt 0:00:16]} 26. Bxf8 {[%emt 0:00:31]} Bxf8 {[%emt 0:00:08]} 27. Rdd8 {[%emt 0:00:08]} Qxb2 {[%emt 0:00:55]} 28. Rxf8+ {[%emt 0:00:05]} Kg7 {[%emt 0:00:07]} 29. Nd5 {[%emt 0:00:18] Rg8+ would kill now.} f5 {[%emt 0:01:00]} 30. Rfd8 {[%emt 0:00:32][%cal Rd8d7] White mates.} g5 {[%emt 0:00:51]} 31. Rd6 {[%emt 0:00:30]} Qc1+ {[%emt 0:00:23]} 32. Rxc1 {[%emt 0:00:06] Black got outplayed after the opening.  Weighted Error Value: White=0.09 (flawless) /Black=1.07} 1-0

[Event "1000GM Saint Louis 2022"]
[Site "Saint Louis"]
[Date "2022.07.21"]
[Round "5.2"]
[White "Mardov, Dimitar"]
[Black "Eswaran, Ashritha"]
[Result "1-0"]
[ECO "A28"]
[WhiteElo "2396"]
[BlackElo "2394"]
[Annotator "TA"]
[PlyCount "181"]
[EventDate "2022.07.20"]
[EventType "tourn"]
[EventCountry "USA"]
[SourceTitle "playchess.com"]
[Source "ChessBase"]
[SourceQuality "1"]
[TimeControl "5400+30"]

{[%evp 10,181,14,0,26,-2,-10,21,15,0,25,12,25,19,38,30,38,7,12,4,14,7,0,0,12,0,0,0,0,0,0,0,8,7,4,0,12,18,27,0,14,0,0,-7,0,0,0,0,0,-22,60,70,90,8,8,0,0,0,20,9,279,258,542,539,531,535,462,201,201,202,194,57,57,57,57,57,57,57,57,57,57,57,57,57,57,57,57,57,57,57,57,57,57,57,57,57,57,58,64,33,78,78,213,213,213,213,213,79,79,79,79,79,79,79,108,101,101,0,0,0,0,0,0,0,0,0,0,0,0,0,0,0,0,0,0,0,0,0,0,0,0,0,0,0,0,0,0,0,0,0,0,0,0,0,0,0,0,0,0,0,0,0,0,0,8,0,8,0,8,0,0,0,29978,0]} 1. c4 {[%emt 0:00:01]} e5 {[%emt 0:00:21]} 2. Nc3 {[%emt 0:00:05]} Nf6 {[%emt 0:00:22]} 3. Nf3 {[%emt 0:00:44]} Nc6 {[%emt 0:00:20]} 4. e3 {[%emt 0:00:23]} Bb4 {[%emt 0:00:51]} 5. Qc2 {[%emt 0:00:47]} Bxc3 {[%emt 0:00:32]} 6. bxc3 {[%emt 0:01:55]} e4 {[%emt 0:00:43] A28: English Opening: Four Knights Variation.} 7. Nd4 {[%emt 0:04:35]} (7. Ng5 $5 {[%cal Rg5e4]}) 7... Ne5 {[%emt 0:02:11]} 8. f4 {[%emt 0:06:49]} exf3 {[%emt 0:01:18] The position is equal.} 9. Nxf3 {[%emt 0:01:18] [#]} Ng6 $146 {[%emt 0:00:43]} ({Predecessor:} 9... d6 10. Be2 O-O 11. O-O Bg4 12. d4 Nxf3+ 13. gxf3 Bh3 14. Rf2 Re8 15. Bd2 Nh5 {0-1 (38) Iturrizaga Bonelli,E (2633)-Dreamist,T (2744) Chess.com INT 2019}) 10. Be2 {[%emt 0:07:58]} O-O {[%emt 0:01:40]} 11. O-O {[%emt 0:00:00]} Qe7 {[%emt 0:04:06]} 12. Nd4 {[%emt 0:06:06]} d6 {[%emt 0:05:03]} 13. Nf5 {[%emt 0:02:53]} Bxf5 {[%emt 0:06:22]} (13... Qe5 {with more complications.} 14. Ng3 Ng4 15. Rb1 Qg5) 14. Qxf5 {[%emt 0:01:34]} c6 {[%emt 0:03:44]} 15. Rb1 {[%emt 0:05:44]} Rfe8 {[%emt 0:02:38]} 16. Rb3 {[%emt 0:06:17]} Rad8 {[%emt 0:06:21]} 17. d3 {[%emt 0:06:29]} d5 {[%emt 0:02:19]} 18. cxd5 {[%emt 0:01:11]} cxd5 {[%emt 0:03:11]} 19. Bd2 {[%emt 0:03:45]} b6 {[%emt 0:00:47]} 20. Rb4 {[%emt 0:00:26]} Rc8 {[%emt 0:01:41]} 21. Bd1 {[%emt 0:02:33]} Ne5 {[%emt 0:06:21]} 22. Bb3 {[%emt 0:02:14]} Red8 {[%emt 0:01:43]} 23. Rd4 {[%emt 0:01:37]} h6 {[%emt 0:05:05]} 24. Kh1 {[%emt 0:06:21]} b5 {[%emt 0:09:25]} 25. Qh3 {[%emt 0:07:15]} (25. e4 {keeps more tension.} dxe4 26. dxe4 Re8 27. Bxh6 gxh6 28. Qxf6 Qxf6 29. Rxf6 Rxc3 30. Rxh6 Rc1+ 31. Rd1) 25... Rc6 26. Be1 {[%emt 0:01:28]} Ng6 27. Qf3 {[%emt 0:01:16]} Re6 28. Bf2 {[%emt 0:05:53]} Qc7 {[%emt 0:01:39]} 29. Bg3 {[%emt 0:00:00]} (29. Bxd5 $2 Ne5 30. Bg3 Rxd5 31. Rxd5 Nxf3 $19) 29... Qe7 {[%emt 0:15:14]} (29... Ne5 $11) 30. e4 $1 $14 {[%emt 0:00:00][%cal Re4d5]} (30. Bxd5 Rxe3 31. Qf5 Nxd5 32. Rxd5 Rxd5 33. Qxd5 a6 $11) 30... dxe4 {[%emt 0:01:08]} 31. Rxd8+ {[%emt 0:00:00]} (31. Qf5 $16 Rxd4 32. cxd4) 31... Qxd8 $11 {[%emt 0:03:01]} 32. dxe4 {[%emt 0:00:01]} Re7 {[%emt 0:02:38]} 33. h3 {[%emt 0:03:08]} Qe8 {[%emt 0:00:28]} 34. Qf5 $36 {[%emt 0:01:57][%mdl 2048] Qxg6 is the strong threat. White fights for an advantage.} Nxe4 $2 {[%emt 0:00:45][%mdl 8192]} 35. Qxg6 $1 $18 {[%emt 0:01:10][%cal Og3e5]} Nd2 $2 {[%emt 0:00:25] [#]} (35... Re6 {is a better defense.} 36. Bxe6 Qxe6 37. Qxe6 Nxg3+ 38. Kg1 fxe6) 36. Be5 $1 {[%emt 0:06:34][%csl Ge5][%cal Rg6g7][%mdl 512]} Qf8 {[%emt 0:00:06] [#]} 37. Rxf7 {[%emt 0:01:04][%mdl 512]} Rxf7 {[%emt 0:00:11]} 38. Bxg7 {[%emt 0:01:14]} Qxg7 {[%emt 0:00:04]} 39. Bxf7+ {[%emt 0:00:05][%mdl 4096] Endgame KQB-KQN} Kf8 {[%emt 0:00:03] [#]} 40. Qd6+ {[%emt 0:01:26]} ({White should play} 40. Qe6 $1 $18 {[%csl Gf7][%cal Re6e8]} Qh7 (40... Qxf7 41. Qxh6+) 41. Qd6+ Kxf7 42. Qd7+ (42. Qxd2 Qb1+ 43. Kh2 Qf5 $16) 42... Kg6 43. Qd3+ (43. Qxd2 Qb7 $16) 43... Kg7 44. Qd7+ (44. Qxd2 Qb1+ 45. Kh2 Qf1 $16) 44... Kg8 45. Qd8+ (45. Qxd2 Qe4 $16) 45... Kf7 46. Qd5+ (46. Qxd2 Qb1+ 47. Kh2 Qf5 $16) 46... Kf6 47. Qxd2) 40... Kxf7 $14 {[%emt 0:00:06]} 41. Qxd2 {[%emt 0:00:12] Threatens to win with Qd5+. KQ-KQ} Qe5 {[%emt 0:00:34] Against Qd5+} 42. Qd7+ {[%emt 0:01:30]} ({Much weaker is} 42. Qxh6 Qe1+ 43. Kh2 Qe5+ 44. g3 Qe2+ 45. Kh1 Qe1+ 46. Kh2 Qf2+ 47. Kh1 Qe1+ 48. Kh2 Qf2+ 49. Kh1 Qe1+ $11) 42... Kg6 {[%emt 0:00:17]} 43. Qxa7 {[%emt 0:01:35] Strongly threatening Qb6+.} Qe1+ {[%emt 0:00:14]} 44. Qg1 {[%emt 0:00:19]} Qxc3 {[%emt 0:00:04]} 45. Qb6+ {[%emt 0:00:27]} Kg7 {[%emt 0:00:06]} 46. Qb7+ {[%emt 0:00:21]} Kg6 {[%emt 0:00:13]} 47. Qe4+ {[%emt 0:00:12]} Kg7 $1 {[%emt 0:00:06]} 48. Qg4+ {[%emt 0:00:23]} Kh7 {[%emt 0:00:11]} 49. Kh2 {[%emt 0:00:42]} Qc4 {[%emt 0:00:37]} 50. Qf5+ {[%emt 0:00:31]} Kg7 {[%emt 0:00:09]} 51. Qe5+ {[%emt 0:00:12]} Kh7 {[%emt 0:00:17]} 52. a3 {[%emt 0:00:28]} Kg6 {[%emt 0:00:29]} 53. Qg3+ {[%emt 0:00:08]} Kh7 {[%emt 0:00:06]} 54. h4 {[%emt 0:00:32]} Qe2 {[%emt 0:01:00]} 55. Qf4 {[%emt 0:00:37]} Qd3 {[%emt 0:02:00]} (55... Qc4 $16 56. Qf5+ Kg7) 56. Qf7+ {[%emt 0:00:45]} Kh8 {[%emt 0:00:06]} 57. Qf6+ {[%emt 0:00:20]} Kh7 {[%emt 0:00:06] [#]} 58. h5 {[%emt 0:00:26]} (58. Qe7+ $1 $18 Kg8 59. Qe6+ Kh7 60. h5) 58... Qe4 $16 {[%emt 0:02:20]} 59. Kh3 {[%emt 0:01:26]} Qe3+ {[%emt 0:00:34]} 60. Qf3 {[%emt 0:01:36]} Qc1 {[%emt 0:01:48]} 61. Qf5+ {[%emt 0:01:21]} Kh8 {[%emt 0:00:13]} 62. Qe5+ {[%emt 0:00:10]} Kh7 {[%emt 0:00:07]} 63. Qxb5 {[%emt 0:01:49]} (63. Qe4+ $16 Kg7 64. Qf3) 63... Qxa3+ $11 {[%emt 0:00:06]} 64. g3 {[%emt 0:00:13]} Qc1 {[%emt 0:00:19]} 65. Qf5+ {[%emt 0:00:10]} Kh8 {[%emt 0:00:09]} 66. Qf8+ {[%emt 0:00:23]} Kh7 {[%emt 0:00:04]} 67. Qf7+ {[%emt 0:00:29]} Kh8 {[%emt 0:00:04]} 68. Qd5 {[%emt 0:00:29]} Kh7 {[%emt 0:00:25]} 69. Kg4 {[%emt 0:00:19]} Qe3 {[%emt 0:00:29]} 70. Qf7+ {[%emt 0:00:41]} Kh8 {[%emt 0:00:05]} 71. Qf6+ {[%emt 0:00:22]} Kh7 {[%emt 0:00:06]} 72. Qg6+ {[%emt 0:00:39]} Kh8 {[%emt 0:00:04]} 73. Kh3 {[%emt 0:00:24]} Qc1 {[%emt 0:00:10]} 74. Qf6+ {[%emt 0:01:00]} Kh7 {[%emt 0:00:05]} 75. Qf5+ {[%emt 0:00:08]} Kh8 {[%emt 0:00:05]} 76. Qf4 {[%emt 0:00:46]} Qh1+ {[%emt 0:00:10]} 77. Kg4 {[%emt 0:00:06]} Qd1+ {[%emt 0:00:03]} 78. Qf3 {[%emt 0:00:14]} Qd2 {[%emt 0:01:03]} 79. Qf8+ {[%emt 0:00:39]} Kh7 {[%emt 0:00:04]} 80. Qe7+ {[%emt 0:00:07]} Kh8 {[%emt 0:00:05]} 81. Kf5 {[%emt 0:01:20] aiming for Qe5+.} Qf2+ {[%emt 0:00:11]} 82. Kg4 {[%emt 0:00:45] White threatens Qe5+ and mate.} Qd2 {[%emt 0:00:05]} 83. Qe5+ {[%emt 0:00:52]} Kh7 {[%emt 0:00:05]} 84. Kh3 {[%emt 0:00:43]} Qc1 {[%emt 0:00:06]} 85. Qd5 {[%emt 0:00:21]} Qf1+ {[%emt 0:01:04]} 86. Kh4 {[%emt 0:00:22] Black must now prevent Qe4+.} Qc1 {[%emt 0:00:08]} 87. Kg4 {[%emt 0:00:10]} Qe3 {[%emt 0:00:26]} 88. Qf7+ {[%emt 0:00:38]} Kh8 {[%emt 0:00:04]} 89. Qf4 {[%emt 0:00:10]} Qe2+ {[%emt 0:00:05]} 90. Kf5 {[%emt 0:00:33]} Qxh5+ $2 {[%emt 0:00:08][%mdl 8192] [#]} (90... Qc2+ $11 91. Kg4 Qc6 92. Qf8+ Kh7) 91. Ke4 $2 {[%emt 0:03:41][%mdl 32768] Weighted Error Value: White=0.18 (very precise) /Black=0.27 (precise) . Sensor Board Error (Ke4/e5)?} (91. Kf6 $1 {mates} Qg5+ 92. Qxg5 hxg5 93. Kxg5 Kg7 94. g4 Kh7 95. Kf6 Kh6 96. g5+ Kh7 97. Kf7) 1-0

[Event "1000GM Saint Louis 2022"]
[Site "Saint Louis"]
[Date "2022.07.21"]
[Round "5.3"]
[White "Gauri, Shankar"]
[Black "Abrahamyan, Tatev"]
[Result "1/2-1/2"]
[ECO "D02"]
[WhiteElo "2376"]
[BlackElo "2291"]
[Annotator "TA"]
[PlyCount "93"]
[EventDate "2022.07.20"]
[EventType "tourn"]
[EventCountry "USA"]
[SourceTitle "playchess.com"]
[Source "ChessBase"]
[SourceQuality "1"]
[TimeControl "5400+30"]

{[%evp 10,93,29,24,33,33,34,33,25,26,30,9,5,0,12,-1,17,29,14,14,38,21,43,7,0,16,14,14,8,0,0,-18,0,-12,-12,-36,-32,-25,-18,-12,-15,-21,0,-50,-45,-65,-83,-78,-78,-77,-56,-63,-53,-50,-29,-91,-91,-91,-88,-135,-127,-131,-91,-91,-85,-85,-65,-80,-52,-75,-70,-95,-91,-98,-102,-102,-95,-88,-83,-83,-83,-96,-19,-21,0,-78]} 1. Nf3 {[%emt 0:26:04]} Nf6 {[%emt 0:00:48]} 2. c4 {[%emt 0:00:35]} e6 {[%emt 0:00:14]} 3. g3 {[%emt 0:00:30]} d5 {[%emt 0:00:14]} 4. Bg2 {[%emt 0:00:13]} Bd6 {[%emt 0:00:06]} 5. d4 {[%emt 0:06:17]} O-O {[%emt 0:00:11]} 6. O-O {[%emt 0:01:24]} h6 $1 {[%emt 0:00:04][%mdl 4] is now more promising than 6...c6. D02: 1 d4 d5 2 Nf3 sidelines, including 2...Nf6 3 g3 and 2...Nf6 3 Bf4.} 7. Nc3 {[%emt 0:13:50]} Nc6 {[%emt 0:02:42]} 8. b3 {[%emt 0:03:24][%cal Bb2b3,Bb3c4,Bc4b5][%mdl 32]} dxc4 {[%emt 0:00:29] White is slightly better.} 9. bxc4 {[%emt 0:00:39]} e5 10. d5 {[%emt 0:00:59]} Na5 {[%emt 0:01:19]} 11. Nd2 {[%emt 0:06:29]} b6 {[%emt 0:02:34]} 12. Qc2 {[%emt 0:03:40] [#]} Ba6 $146 {[%emt 0:06:28]} ({Predecessor:} 12... Bd7 13. Qd3 Nb7 14. e4 Nc5 15. Qe2 Re8 16. Nb3 Qe7 17. Be3 a6 18. h3 Reb8 19. Nxc5 Bxc5 {½-½ (56) Herega,N (2185)-Martinkus,R (2033) Terme Catez 2022}) 13. Nb5 {[%emt 0:05:45]} Bxb5 {[%emt 0:12:04]} 14. cxb5 {[%emt 0:01:40]} Qd7 {[%emt 0:00:04]} 15. a4 {[%emt 0:03:36]} a6 {[%emt 0:00:06]} 16. Rb1 {[%emt 0:03:25]} Ra7 {[%emt 0:06:38]} 17. Bb2 {[%emt 0:03:59]} axb5 {[%emt 0:07:32]} 18. axb5 {[%emt 0:00:07]} Rfa8 {[%emt 0:01:01]} 19. Bc3 {[%emt 0:08:28]} Qe8 {[%emt 0:04:19]} 20. h3 {[%emt 0:08:15]} Nd7 {[%emt 0:04:04]} 21. Kh2 {[%emt 0:04:43]} Nc5 {[%emt 0:04:30]} 22. Rfc1 {[%emt 0:05:17]} Nab7 {[%emt 0:05:38] Pair of Knights!} 23. Nc4 {[%emt 0:01:24]} Ra2 {[%emt 0:15:50]} 24. Rb2 {[%emt 0:00:03]} Rxb2 {[%emt 0:06:03]} 25. Qxb2 {[%emt 0:01:52][%cal Rc3e5]} Ra4 {[%emt 0:07:07]} 26. Ne3 {[%emt 0:03:47]} (26. Nxe5 $11 Ne4 27. Bd4) 26... Na5 $15 {[%emt 0:03:10]} 27. Bxa5 {[%emt 0:01:00]} Rxa5 {[%emt 0:02:10]} 28. Rb1 Qa8 {[%emt 0:01:13]} 29. Qc2 {[%emt 0:01:05]} Ra2 {[%emt 0:01:31]} 30. Rb2 {[%emt 0:00:02]} Rxb2 {[%emt 0:00:21]} 31. Qxb2 {[%emt 0:00:01]} Qa4 {[%emt 0:00:34]} 32. h4 {[%emt 0:00:48] [#]} (32. Nf5 $11) 32... h5 $1 $17 {[%emt 0:02:50]} 33. Bh3 {[%emt 0:01:59]} g6 {[%emt 0:01:30] Against Bf5} 34. Qb1 {[%emt 0:00:43]} ({Better is} 34. Kg1) 34... Ne4 {[%emt 0:00:40]} 35. Kg2 {[%emt 0:00:59]} Qd4 {[%emt 0:01:57]} 36. Bd7 {[%emt 0:00:39]} Bc5 {[%emt 0:01:34][%cal Oe4f2] Hoping for ...Nxf2!} 37. Qd3 {[%emt 0:00:09]} Kf8 {[%emt 0:00:36]} 38. Bc6 {[%emt 0:00:37]} Ke7 {[%emt 0:00:20]} 39. Qxd4 {[%emt 0:00:41]} exd4 $15 {[%emt 0:00:23][%mdl 4096] Endgame KBN-KBN} ({Reject} 39... Bxd4 $6 40. Nc4 $11) 40. Nc4 {[%emt 0:00:30]} d3 $1 {[%emt 0:00:30]} 41. exd3 {[%emt 0:00:32]} Nxf2 {[%emt 0:00:06]} 42. Ne5 {[%emt 0:00:30] [#]} Nd1 $1 {[%emt 0:01:04]} 43. Kf3 {[%emt 0:00:06]} Nc3 {[%emt 0:00:28]} 44. Nc4 {[%emt 0:00:31]} f6 {[%emt 0:00:32]} 45. Nd2 {[%emt 0:00:07]} Bd6 {[%emt 0:00:24]} (45... Na2 $17 46. Nb3 Bd6) 46. Nc4 $11 {[%emt 0:01:14]} Bc5 {[%emt 0:00:38]} ({Black should play} 46... g5 $11) 47. Nd2 $1 {[%emt 0:00:02] Weighted Error Value: White=0.10 (very precise) /Black=0.10 (very precise)} 1/2-1/2